Cogmind - Beta 16.1 @@@ ROGUE MODE // 2026.03.31 @ 20:24:12 Player: DenchikZalaziet Result: Destroyed by D-53 Grenadier with Mini Grenade Launcher Performance ------------- Evolutions (0) 0 Regions Visited (2) 400 Robots Destroyed (20) 100 Value Destroyed (408) 408 Prototype IDs (2) 40 Alien Tech Used (0) 0 Bonus (0) 0 TOTAL SCORE: 948 Bonus ------- None Cogmind --------- Core Integrity 0/250 Matter 295/300 Energy 100/100 System Corruption 0% Temperature Cool (0) Movement Core (1350) Ox26 Location -10/Mines Parts ------- > --- POWER (1) -------- (None) > --- PROPULSION (2) --- (None) > --- UTILITY (2) ------ Huge Storage Unit > --- WEAPON (2) ------- (None) > --- INVENTORY (25) --- Ion Engine Ion Engine Flight Unit Heat Sink Improved Heat Sink Small Storage Unit Structural Scanner Structural Scanner Signal Interpreter Signal Interpreter Seismic Detector ECM Suite Propulsion Shielding Propulsion Shielding Propulsion Shielding Light Armor Plating Assault Rifle Light Assault Rifle Peak State ------------ > --- POWER ------------ Ion Engine > --- PROPULSION ------- Light Treads Light Treads > --- UTILITY ---------- Huge Storage Unit Seismic Detector > --- WEAPON ----------- Assault Rifle Assault Rifle > --- INVENTORY -------- Ion Engine Ion Engine Flight Unit Heat Sink Improved Heat Sink Small Storage Unit Structural Scanner Structural Scanner Signal Interpreter Signal Interpreter Seismic Detector ECM Suite Propulsion Shielding Propulsion Shielding Small Laser Assault Rifle Assault Rifle Light Assault Rifle [Rating: 9] Favorites ----------- Power Ion Engine Engine Ion Engine Propulsion Light Treads Treads Light Treads Leg Aluminum Leg Utility Seismic Detector Device Seismic Detector Storage Huge Storage Unit Weapon Assault Rifle Energy Gun Small Laser Ballistic Gun Assault Rifle Build | -11 -10 -10 ------- Run | Yrd Mat Min Slots Evolved . | . . . Power . | . . . Propulsion . | . . . Utility . | . . . Weapon . | . . . Parts Attached 17 | 8 8 1 Power 3 | 2 1 . Engine 3 | 2 1 . Core . | . . . Reactor . | . . . Propulsion 5 | 2 3 . Treads 4 | 2 2 . Leg 1 | . 1 . Wheel . | . . . Hover . | . . . Flight . | . . . Utility 4 | 2 2 . Device 2 | 1 1 . Storage 2 | 1 1 . Processor . | . . . Hackware . | . . . Protection . | . . . Artifact . | . . . Weapon 5 | 2 2 1 Energy Gun 1 | 1 . . Energy Cannon . | . . . Ballistic Gun 4 | 1 2 1 Ballistic Cannon . | . . . Launcher . | . . . Special Weapon . | . . . Impact Weapon . | . . . Slashing Weapon . | . . . Piercing Weapon . | . . . Special Melee Weapon . | . . . Unidentified Prototypes . | . . . Parts Lost 10 | . 1 9 Power 1 | . . 1 Propulsion 4 | . 1 3 Utility 1 | . . 1 Weapon 4 | . . 4 Highest Loss Streak 9 | . 1 9 To Critical Strikes . | . . . Average Backups 14 | . 15 20 Power 1 | . 1 2 Propulsion . | . . 1 Utility 9 | . 9 13 Weapon 2 | . 2 3 Tool/Special . | . . . Unused Backups 14 | . . 14 Power 1 | . . 1 Propulsion 1 | . . 1 Utility 11 | . . 11 Weapon 1 | . . 1 Tool/Special . | . . . Average Slot Usage (%) 99 | . 99 80 Engine 13 | . 14 9 Treads 22 | . 22 21 Leg 5 | . 5 . Device 13 | . 14 11 Storage 14 | . 14 14 Energy Gun 4 | . 4 4 Ballistic Gun 23 | . 23 18 Peak Build Rating 9 | 7 9 9 Average Rating 8 | 5 8 7 On Entrance 5 | . 7 9 Avg Prop Armor Cover (%) 7 | . 7 . Naked Turns . | . . . Heaviest Build 90 | 14 90 90 Greatest Support 40 | 40 40 40 Greatest Overweight (x) 27 | . 4 27 Average Overweight (x) 2 | . 2 4 Largest Inventory Capacity 25 | 8 25 25 Average Capacity 24 | 6 24 25 Most Carried 21 | 1 21 21 Average Carried 14 | . 15 20 Final Capacity 25 | 8 25 25 Final Carried 21 | 1 21 18 Class Distribution -------------------- 100% | Mutant Dominant Class ---------------- Mutant | -10/Materials Mutant | -10/Mines Resources | -11 -10 -10 ----------- Run | Yrd Mat Min Matter Collected 638 | 223 415 . Remotely . | . . . Salvage Created 686 | 13 673 . Parts 47 | 4 43 . Haulers Intercepted 2 | . 2 . Recyclers Shooed 3 | . 3 . Parts Field Recycled . | . . . Retrieved Matter . | . . . Parts Self-Destructed . | . . . Prevented . | . . . Parts Restored . | . . . Kills | -11 -10 -10 ------- Run | Yrd Mat Min Combat Hostiles Destroyed 11 | . 11 . Guns 11 | . 11 . Classes Destroyed 7 | 1 6 . Worker 2 | . 2 . Tunneler 1 | 1 . . Hauler 2 | . 2 . Recycler 1 | . 1 . Watcher 3 | . 3 . Swarmer 3 | . 3 . Grunt 8 | . 8 . Best Kill Streak 5 | 1 5 . Combat Bots Only 3 | . 3 . Max Kills in Single Turn 1 | 1 1 . Gunslinging . | . . . Exploded . | . . . Melee . | . . . Uniques/NPCs Destroyed . | . . . Combat | -11 -10 -10 -------- Run | Yrd Mat Min Hostile Shots Fired 101 | . 71 30 Missed 28 | . 22 6 Hits 73 | . 49 24 Melee 2 | . . 2 Projectile 71 | . 49 22 AOE 17 | . . 17 Critical Strikes 2 | . 2 . Damage Taken 1411 | . 593 818 Core 268 | . 103 165 Absorbed by Shields . | . . . Core Remaining (%) 100 | 100 . . Volleys Fired 69 | 5 64 . Largest 2 | 2 2 . Hottest 60 | 60 60 . Shots Fired 127 | 10 117 . Gun 127 | 10 117 . Cannon . | . . . Launcher . | . . . Special . | . . . Kinetic 103 | 5 98 . Thermal 24 | 5 19 . Explosive . | . . . Electromagnetic . | . . . Robot Hit Streak 14 | 4 14 . Robot Miss Streak 3 | 2 3 . Penetration Max . | . . . Secondary Targets 2 | . 2 . Max Gunslinging Chain 1 | . 1 . Shots Hit Robots 90 | 8 82 . Core Hits 39 | 1 38 . Critical Kills . | . . . Critical Parts Destroyed . | . . . Critical Strikes . | . . . Melee Attacks . | . . . Impact . | . . . Slashing . | . . . Piercing . | . . . Sneak Attacks . | . . . Combat Hostiles . | . . . Follow-up Attacks . | . . . Damage Inflicted 1197 | 92 1105 . Guns 1150 | 92 1058 . Cannons . | . . . Explosions . | . . . Melee . | . . . Ramming 47 | . 47 . Kinetic 938 | 47 891 . Thermal 212 | 45 167 . Explosive . | . . . Electromagnetic . | . . . Impact . | . . . Slashing . | . . . Piercing . | . . . Highest Corruption . | . . . Average Corruption . | . . . Corruption Purged . | . . . Corruption Blocked . | . . . Overload Shots . | . . . Overflow Damage . | . . . Projectiles . | . . . Explosions . | . . . Melee . | . . . Knockbacks . | . . . Impact . | . . . Kinetic . | . . . Secondary . | . . . Self-Inflicted Damage . | . . . Shots . | . . . Rammed 12 | . 12 . Targets Rammed 12 | . 12 . Kicked . | . . . Crushed . | . . . Highest Temperature 72 | . 72 . Average Temperature 30 | . 30 . Received Heat Transfer 306 | . 306 . Siege Activations . | . . . Martial Activations . | . . . Shielding Activations . | . . . Robots Disrupted . | . . . Combat Hostiles . | . . . Robots Corrupted . | . . . Combat Hostiles . | . . . Parts Fried . | . . . Impact Corruptions . | . . . Robots Melted . | . . . Combat Hostiles . | . . . Parts Melted 1 | . 1 . Heat Transferred 475 | 100 375 . Parts Sabotaged . | . . . Parts Stolen . | . . . Parts Stripped . | . . . Power Chain Reactions . | . . . Alert | -11 -10 -10 ------- Run | Yrd Mat Min Maximum Alert Level . | . . . Low Security (%) 100 | 100 100 100 Level 1 . | . . . Level 2 . | . . . Level 3 . | . . . Level 4 . | . . . Level 5 . | . . . High Security . | . . . Max Security . | . . . Peak Influence 101 | 5 101 15 Initial . | . . . Average 10 | . 11 . Influence Increases 371 | 5 351 15 Destroy 0b10 Robot/C 220 | . 220 . Destroy 0b10 Robot/NC 45 | 5 40 . Destroy Leader 60 | . 60 . Successful Hack 31 | . 31 . Partial Spotted 15 | . . 15 Influence Decreases 371 | 5 351 15 Time Decay 346 | 5 341 . Lost Part 25 | . 10 15 Squads Dispatched 2 | . 2 . Investigation 2 | . 2 . Extermination . | . . . Reinforcement . | . . . Assault . | . . . Garrison . | . . . Intercept . | . . . Searches Triggered . | . . . Construction Impeded . | . . . Haulers Reinforced . | . . . Active Scanning Responses . | . . . Cargo Convoy Interrupts . | . . . Stealth | -11 -10 -10 --------- Run | Yrd Mat Min Distress Signals . | . . . Communications Jammed . | . . . Distress Signals . | . . . Times Spotted 38 | . 22 16 Peak Tracking Total 15 | . 3 15 Tactical Retreats . | . . . Traps | -11 -10 -10 ------- Run | Yrd Mat Min Traps Triggered 2 | . 2 . Indirectly . | . . . Trap Hack Attempts . | . . . Triggered . | . . . Disarmed . | . . . Reprogrammed . | . . . Reused . | . . . Traps Extracted . | . . . Installed . | . . . Triggered . | . . . Machines | -11 -10 -10 ---------- Run | Yrd Mat Min Machines Disabled . | . . . Max in Single Turn . | . . . Machines Repaired . | . . . Machines Dismantled . | . . . Machines Sabotaged . | . . . Overloaded Fab Kills . | . . . Hacking | -11 -10 -10 --------- Run | Yrd Mat Min Machines Accessed 10 | . 10 . Terminals 8 | . 8 . Fabricators . | . . . Repair Stations . | . . . Recycling Units 2 | . 2 . Scanalyzers . | . . . Garrison Access . | . . . Total Hacks 27 | . 27 . Successful 11 | . 11 . Failed 15 | . 15 . Catastrophic 1 | . 1 . Database Lockouts 1 | . 1 . Manual 17 | . 17 . Terminals 25 | . 25 . Fabricators . | . . . Repair Stations . | . . . Recycling Units 2 | . 2 . Scanalyzers . | . . . Garrison Access . | . . . Terminal Hacks 9 | . 9 . Robot Analysis 3 | . 3 . Prototype ID Bank 1 | . 1 . Terminal Index 1 | . 1 . Dispatch Records 1 | . 1 . Surveillance Status 1 | . 1 . Registered Prototypes 1 | . 1 . Zone Layout 1 | . 1 . Fabricator Hacks . | . . . Repair Station Hacks . | . . . Recycling Unit Hacks 2 | . 2 . Report Inventory 2 | . 2 . Scanalyzer . | . . . Garrison Access Hacks . | . . . Unauthorized Hacks . | . . . Terminals . | . . . Fabricators . | . . . Repair Stations . | . . . Recycling Units . | . . . Scanalyzers . | . . . Garrison Access . | . . . Data Cores Recovered . | . . . Used . | . . . Hacking Detections 9 | . 9 . Full Trace Events . | . . . Feedback Events . | . . . Feedback Blocked . | . . . Robot Schematics Acquired . | . . . Robots Built . | . . . Authchips . | . . . Time . | . . . Total Robot Build Rating . | . . . Part Schematics Acquired . | . . . Parts Built . | . . . Authchips . | . . . Time . | . . . Total Part Build Rating . | . . . Part Studies Acquired . | . . . Parts Repaired . | . . . Time . | . . . Parts Recycled . | . . . Recycled Matter . | . . . Retrieved Matter . | . . . Retrieved Components . | . . . Parts Scanalyzed . | . . . Part Schematics Acquired . | . . . Parts Damaged . | . . . Bothacking | -11 -10 -10 ------------ Run | Yrd Mat Min Used RIF Installer . | . . . Robots Hacked . | . . . Non-combat . | . . . Combat . | . . . Robot Hacks Applied . | . . . Relay Couplers Released . | . . . Fabnet Peak Effective % . | . . . Robots Rewired . | . . . Allies Hacked . | . . . Hacks Repelled . | . . . Allies | -11 -10 -10 -------- Run | Yrd Mat Min Total Allies . | . . . Largest Group . | . . . Highest-Rated Group . | . . . Highest-Rated Ally . | . . . Total Orders . | . . . Ally Attacks . | . . . Total Damage . | . . . Kills . | . . . Allies Corrupted . | . . . Allies Melted . | . . . Intel | -11 -10 -10 ------- Run | Yrd Mat Min Active Infowar (turns) 3521 | 19 3454 48 Seismic 3521 | 19 3454 48 Robot Analysis Total 3 | . 3 . Derelict Logs Recovered . | . . . Drone Launches . | . . . Drone Recoveries . | . . . Exploration | -11 -10 -10 ------------- Run | Yrd Mat Min Turns Passed 3600 | 94 3454 52 Spaces Moved 916 | 47 856 13 Core 7 | 6 . 1 Treads 909 | 41 856 12 Legs . | . . . Wheels . | . . . Hover . | . . . Flight . | . . . Fastest Speed 50 | 50 160 320 Average Speed 360 | 145 371 415 Slowest Speed 1400 | 160 480 1400 Overloaded Moves . | . . . Propulsion Burnouts . | . . . Robots Hopped . | . . . Potential Cave-ins . | . . . Cave-ins Triggered . | . . . Exploration Rate (%) 36 | 4 96 10 Regions Visited 2 Branch Regions 1 Pre-discovered Areas . | . . . Known Exits Taken . | . . . Unknown Exits Taken 2 | 1 1 . Scrap Searched . | . . . Spaces Dug . | . . . Terrain Destroyed . | . . . Melee . | . . . Projectile . | . . . AOE . | . . . Terrain Rammed . | . . . Walls Destroyed . | . . . Machines Disabled . | . . . Actions | -11 -10 -10 --------- Run | Yrd Mat Min Total 1053 | 59 978 16 Wait 22 | . 22 . Move 914 | 46 855 13 Hop . | . . . Pick Up 15 | . 15 . Fast Attach 9 | 7 2 . Attach 3 | . . 3 Detach 1 | . 1 . Swap 7 | 1 6 . Drop 1 | . 1 . Fire 69 | 5 64 . Melee . | . . . Ram . | . . . Kick . | . . . Crush 12 | . 12 . Escape Stasis . | . . . Rewire . | . . . Trap . | . . . Miscellaneous . | . . . Route ------- -11/Scrapyard -10/Materials (discovered 5 exits: [*Mat x3] / [*Min] / [*Sub]) -10/Mines History --------- Turn | Location | Event 22 | -11/Scrapyard | Discovered new exit (range 16) 95 | -11/Scrapyard | Entered Materials 301 | -10/Materials | Build established: Mutant 452 | -10/Materials | Discovered new exit (range 13) 827 | -10/Materials | Central database locked down 1648 | -10/Materials | Discovered new exit (range 9) 1933 | -10/Materials | Discovered new exit (range 8) 2523 | -10/Materials | Discovered new exit (range 5) 3184 | -10/Materials | Discovered new exit (range 11) 3549 | -10/Materials | Entered Mines 3550 | -10/Mines | Assembled infested the area 3555 | -10/Mines | Assisted by a Guerilla fighting off Assembled 3579 | -10/Mines | Core integrity fell below 50% 3597 | -10/Mines | Core integrity fell below 20% 3601 | -10/Mines | Destroyed by D-53 Grenadier with Mini Grenade Launcher Last Messages --------------- 03588_ as-23971 destroyed. 03589_ The unstable cave ceiling collapses. 03590_ Lgt. Treads destroyed. 03591_ The unstable cave ceiling collapses. 03591_ as-46572 destroyed. 03591_ as-45851 destroyed. 03591_ as-87653 destroyed. 03592_ Lgt. Treads destroyed. 03593_ as-80312 destroyed. 03594_ The unstable cave ceiling collapses. 03595_ as-41434 destroyed. 03596_ Knocked back. 03597_ The unstable cave ceiling collapses. 03597_ as-37886 destroyed. 03597_ Seismic Detector destroyed. 03598_ as-76618 destroyed. 03599_ as-32380 destroyed. 03600_ The unstable cave ceiling collapses. 03600_ Assault Rifle destroyed. 03600_ Sml. Laser destroyed. Map ----- +----------------------------------------------------+ | ?????????????????????????????????????????????? | | ?????????????????????????????????????????????? | | ?????????????????????????????????????????????? | | ?????????????????????????????????????????????? | | ?????????????????????????????????????????????? | | ?????????????????????????????????????????????? | | ?????????????????????????????????????????????? | | ????????????????? ???????????????????????????? | | ??????????????? ???????????????????????????? | | ????????#?????? ???????????????????????????? | | ????????# ???? ???????????????????????????? | | ???????# ???? ???????????????????????????? | | ???????? ? ???????????????????????????? | | ????????# < #??????????????????????????? | | ???????## #?????????????????????????? | | ??????## ?????????????????????????? | | ??????# ####?????????????????????? | | ??????# ###???????????????????? | | ???????# #???????????????????? | | ???????? # ####????????????????? | | ???????? # #????????????????? | | ???????# dd #????????????????? | | ????????# r ##????????????????? | | ????????# % ######???????????? | | ????????# # #?????????? | | ?????????# @ #?????????? | | ?????????### ###??????????????? | | ???????????#### # #????????????????? | | ??????????????# #?k #????????????????? | | ??????????????# ##?? ##????????????????? | | ??????????????# ##??????????????????????? | | ??????????????########???????????????????????? | | ?????????????????????????????????????????????? | | ?????????????????????????????????????????????? | | ?????????????????????????????????????????????? | | ?????????????????????????????????????????????? | | | | | | | | | | | | | | | | | | | | | | | | | | | | | +----------------------------------------------------+ Best States ------------- Heat Dissipation 25 Energy Generation 10 Energy Capacity 250 Matter Stores 300 Matter Capacity 300 Sight Range 16 Terrain Scan Density 10 Evasion (%) 40 Recoil Reduction 2 Item Schematics ----------------- None Robot Schematics ------------------ None Fabricated ------------ Nothing Repaired ---------- Nothing Studied --------- None Alien Tech Used ----------------- None Achievements -------------- None Challenges ------------ None Game ------ Seed DisruptionSmartbombBoomstick Manual? 0 Play Time 00:18:15 Cumulative 25.3 hours Start 2026.03.31 @ 19:10:17 End 2026.03.31 @ 20:24:12 Sessions 2 Manual Loads 0 Difficulty Rogue Special Mode None Game No. 39 Rogue 38 Adventurer 1 Explorer 0 Win Type - Total 0 Types 0/0/0/0/0/0/0/0/0/0 Lore% 16 Gallery% 25 Achievement% 20 Wizard Run 0 Options --------- Layout 1 ASCII 0 Keyboard 1 Movement Arrows Keybinds 0 Fullscreen 1 Font 24/Smallcaps Map View 50x35 Zoom Use 0% Tactical HUD 1 Map Filters NONE Filters NONE Steam 1 RUN: 92846897-c6c6-4881-8b25-c57ed402856d